bitfinex/quotes_ETHUSD_20260208
["timestamp","ask_amount","ask_price","bid_price","bid_amount"]
[1770571290044,0.90553343,2093.6,2092.5,0.92406472]
[1770571290345,0.90553343,2093.6,2092.5,2.11880098]
[1770571291129,2.09970586,2093.5,2092.5,2.11880098]
[1770571291352,3.337,2093.4,2092.5,0.92406472]
[1770571291539,3.337,2093.4,2092.5,2.11879746]
[1770571291729,3.337,2093.4,2093.1,0.001]
[1770571292123,0.90553343,2093.3,2092.5,0.001]
[1770571292462,3.337,2093.4,2092.5,0.92406472]
[1770571292630,3.337,2093.4,2092.6,0.92306472]
[1770571293761,4.53124723,2093.4,2092.7,0.92306472]
[1770571295720,4.53124723,2093.4,2092.7,2.11767631]
[1770571295924,1.00793343,2094.0,2092.8,0.92306472]
[1770571296165,1.19391851,2094.0,2092.8,0.92306472]
[1770571297525,4.77517313,2094.2,2092.8,0.92306472]
[1770571297746,4.77517313,2094.2,2093.0,0.92306472]
[1770571298538,1.19377327,2094.2,2093.0,0.92306472]
[1770571299953,0.90553343,2094.1,2093.0,2.11748236]
[1770571300254,0.95324222,2094.1,2093.1,0.92306472]
[1770571300478,0.95324222,2094.1,2092.9,2.11752898]
[1770571300684,0.90553343,2094.1,2093.0,1.19444911]
[1770571300867,1.19377327,2094.2,2093.1,0.92306472]
[1770571301070,0.90553343,2094.1,2093.1,0.92306472]
[1770571301451,0.95324222,2094.1,2093.1,0.92306472]
[1770571302160,1.19388729,2094.0,2093.1,2.11741688]
[1770571303392,1.19388729,2094.0,2092.9,1.19448678]
[1770571303589,0.95324222,2093.8,2092.6,2.11771852]
[1770571303753,0.90553343,2093.6,2092.6,0.92306472]
[1770571304095,3.338,2093.7,2092.5,1.19571656]
[1770571304096,0.95324222,2093.5,2092.5,0.001]
[1770571304394,1.19422948,2093.4,2092.5,0.001]
[1770571304557,0.90553343,2093.3,2092.5,0.001]
[1770571304966,0.90553343,2093.3,2092.9,0.001]
[1770571305169,0.90553343,2093.3,2092.5,0.001]
[1770571305669,2.10571716,2093.4,2092.6,0.001]
[1770571307457,0.91148768,2093.3,2092.6,0.001]
[1770571309485,1.19434358,2093.2,2092.6,0.001]
[1770571309788,4.53234358,2093.2,2092.6,0.001]
[1770571310470,0.1024,2093.6,2092.6,0.99348639]
[1770571310677,1.19405836,2093.7,2092.6,0.99348639]
[1770571311380,0.002,2093.8,2092.7,1.19462894]
[1770571311579,0.002,2093.8,2092.8,0.99248639]
[1770571313478,0.002,2093.8,2093.0,0.99248639]
[1770571315093,0.002,2093.8,2092.9,0.99248639]
[1770571315262,3.34,2093.8,2092.9,0.99248639]
[1770571315473,0.95919647,2093.5,2092.6,0.001]
[1770571315668,1.19422948,2093.4,2092.6,0.001]
[1770571316093,0.95919647,2093.2,2092.6,0.001]
[1770571316291,4.29719647,2093.2,2092.0,0.99348639]
[1770571316493,4.29719647,2093.2,2092.1,1.19497021]
[1770571316797,4.29719647,2093.2,2092.1,1.19496335]
[1770571316998,0.91148768,2093.1,2092.1,1.19496335]
[1770571317783,1.19445771,2093.0,2092.1,1.19496335]
[1770571318189,1.19445771,2093.0,2092.2,0.99248639]
[1770571318392,1.19445771,2093.0,2092.8,0.001]
[1770571318699,1.19445771,2093.0,2092.2,0.99248639]
[1770571318881,1.19445771,2093.0,2092.5,0.001]
[1770571319077,0.95919647,2092.8,2092.0,0.001]
[1770571319286,0.91148768,2092.8,2092.0,0.001]
[1770571319478,0.1024,2092.9,2092.0,0.001]
[1770571320008,1.19457186,2092.8,2092.0,0.001]
[1770571320210,1.19457186,2092.8,2092.0,0.99348639]
[1770571320613,1.19445771,2093.1,2092.0,0.99348639]
[1770571320917,4.77675461,2093.5,2092.0,0.99348639]
[1770571321078,4.77675461,2093.5,2092.0,1.04119518]
[1770571321614,1.19612352,2093.6,2092.4,0.99248639]
[1770571321903,1.24383231,2093.6,2092.6,0.99248639]
[1770571322108,1.19612352,2093.6,2092.6,0.99248639]
[1770571323922,1.19612352,2093.6,2092.7,1.19462894]
[1770571324376,0.91148768,2093.5,2092.4,1.19476878]
[1770571324974,0.91148768,2093.5,2092.3,2.18730897]
[1770571325208,0.95919647,2093.1,2092.0,0.001]
[1770571325378,3.339,2093.0,2092.0,0.001]
[1770571325614,3.339,2093.0,2092.0,1.19602265]
[1770571325815,3.339,2093.0,2092.0,0.001]
[1770571326015,1.19451478,2092.9,2092.0,0.001]
[1770571326322,2.10600246,2092.9,2092.0,0.001]
[1770571329810,1.19451478,2092.9,2092.0,0.99348639]
[1770571330223,1.19451478,2092.9,2092.0,2.18849448]
[1770571330606,1.19451478,2092.9,2092.1,0.99248639]
[1770571330840,6.52196483,2093.3,2092.3,0.99248639]
[1770571330841,1.19432964,2093.3,2092.3,0.99248639]
[1770571332440,0.1024,2093.1,2092.2,0.001]
[1770571332637,3.4414,2093.1,2092.2,0.001]
[1770571332942,3.339,2093.1,2092.2,0.99348639]
[1770571334351,1.19445771,2093.0,2092.2,0.99348639]
[1770571334547,1.19445771,2093.0,2092.2,2.18839185]
[1770571335234,1.19445771,2093.0,2092.2,0.001]
[1770571335436,1.19445771,2093.0,2092.2,1.19591076]
[1770571336845,1.19445771,2093.0,2092.2,0.001]
[1770571338119,1.19445771,2093.0,2092.2,0.90637867]
[1770571339152,1.19445771,2093.0,2092.2,2.101253]
[1770571340158,4.53343735,2093.1,2092.3,0.90537867]
[1770571340325,1.19432327,2093.3,2092.3,0.90537867]
[1770571341448,1.296634,2093.4,2092.5,0.90537867]
[1770571342152,1.19420144,2093.5,2092.5,0.90537867]
[1770571343530,1.19420144,2093.5,2092.6,1.19468603]
[1770571343745,1.19420144,2093.5,2092.6,2.1000647]
[1770571343946,0.002,2093.1,2092.6,2.1000647]
[1770571345460,0.002,2093.1,2092.5,1.19470084]
[1770571345823,0.002,2093.1,2092.4,1.19480022]
[1770571346154,0.002,2093.1,2092.4,2.10017889]
[1770571346454,0.002,2093.1,2092.5,0.90537867]
[1770571346955,0.002,2093.3,2092.6,0.90537867]
[1770571347953,0.002,2093.3,2092.8,0.90537867]
[1770571350027,0.002,2093.3,2092.9,1.19451478]
[1770571351254,0.002,2093.3,2092.9,2.09989345]
[1770571351556,0.002,2093.6,2093.0,0.90537867]
[1770571352156,0.002,2093.6,2093.2,0.90537867]
[1770571354257,0.002,2093.6,2093.2,2.09969077]
[1770571354635,0.002,2093.8,2093.3,0.90537867]
[1770571355359,0.002,2093.8,2093.2,1.1943121]
[1770571356940,0.002,2093.6,2093.2,1.1943121]
[1770571357456,0.002,2093.6,2093.1,8.11659988]
[1770571357457,0.002,2093.6,2093.1,4.53336535]
[1770571357638,0.002,2093.6,2093.0,1.19445032]
[1770571357838,0.002,2093.6,2093.1,1.19439412]
[1770571358249,0.002,2093.6,2093.0,1.19445771]
[1770571359760,0.002,2093.6,2092.9,9.02143021]
[1770571359761,0.002,2093.6,2092.9,4.53250194]
[1770571359969,0.002,2093.6,2092.8,1.19452758]
[1770571360673,0.002,2093.6,2092.8,0.90537867]
[1770571361545,0.002,2093.6,2092.7,1.19462894]
[1770571361746,0.002,2093.6,2092.7,2.10000761]
[1770571362471,0.002,2093.6,2092.6,2.10004126]
[1770571362665,0.002,2093.6,2092.7,0.90537867]
[1770571363688,0.99623103,2093.6,2092.5,0.001]
[1770571363894,0.99623103,2093.6,2092.5,0.90637867]
[1770571364064,0.002,2093.6,2092.5,0.90637867]
[1770571364794,0.002,2093.6,2092.7,0.90537867]
[1770571367400,0.91550598,2093.6,2092.7,1.19458467]
[1770571369707,0.91350598,2093.4,2092.5,1.19569941]
[1770571369998,1.19417243,2093.5,2092.6,2.13654112]
[1770571370364,0.002,2093.6,2092.7,0.94088311]
[1770571370561,1.19612429,2093.6,2092.7,0.94088311]
[1770571371489,0.002,2093.6,2092.7,0.94088311]
[1770571371695,0.002,2093.6,2092.7,2.13546935]
[1770571373496,0.002,2093.6,2092.9,2.13539789]
[1770571373793,0.002,2093.6,2093.0,0.94088311]
[1770571376204,0.002,2093.6,2093.1,1.19440064]
[1770571377304,0.002,2093.6,2092.9,3.338]
[1770571377505,0.002,2093.6,2092.9,4.53248802]
[1770571378381,1.19611539,2093.6,2092.9,4.53248802]
[1770571378574,1.19611539,2093.6,2092.9,1.19448802]
[1770571381697,0.002,2093.6,2092.9,0.94088311]
[1770571382474,0.002,2093.6,2092.9,0.94188311]
[1770571382675,0.002,2093.4,2092.9,0.94188311]
[1770571383486,0.002,2093.6,2092.9,0.94188311]
[1770571383682,0.002,2093.6,2093.0,0.94088311]
[1770571384000,0.002,2093.6,2093.2,0.94088311]
[1770571385981,0.002,2093.6,2093.3,1.19428653]
[1770571388512,0.002,2093.6,2093.2,1.19434358]
[1770571390015,0.002,2093.6,2093.2,2.13522669]
[1770571391002,0.002,2093.6,2093.3,0.94088311]
[1770571392321,0.002,2093.6,2093.1,1.19437561]
[1770571392493,0.002,2093.6,2093.2,1.19434298]
[1770571392885,0.002,2093.6,2093.1,4.77758397]
[1770571395713,0.002,2093.6,2093.3,0.001]
[1770571395914,0.002,2093.4,2093.3,0.001]
[1770571400032,0.002,2093.4,2092.9,0.001]
[1770571400228,0.92284686,2093.4,2092.6,1.1956469]
[1770571400433,0.92284686,2093.4,2092.7,1.19461698]
[1770571402657,0.92284686,2093.4,2092.6,0.002]
[1770571402658,1.19428653,2093.3,2092.6,0.002]
[1770571403540,0.92084686,2093.2,2092.6,0.002]
[1770571404476,1.19626913,2093.4,2092.7,1.19462894]
[1770571404967,1.19626913,2093.4,2092.8,0.001]
[1770571405170,2.11711599,2093.4,2092.8,0.001]
[1770571406155,1.19626913,2093.4,2092.8,0.001]
[1770571408255,1.19626913,2093.4,2092.8,0.002]
[1770571408565,0.002,2093.2,2092.8,0.002]
[1770571410851,0.92284686,2093.2,2092.8,0.002]
[1770571411987,0.002,2093.2,2092.8,0.002]
[1770571412648,0.92084686,2093.1,2092.3,0.001]
[1770571413095,0.92084686,2092.9,2091.8,1.19510558]
[1770571413277,0.92084686,2092.9,2091.9,1.19508127]
[1770571414057,1.42084686,2092.7,2091.9,1.19508127]
[1770571414675,1.69465876,2092.7,2091.9,5.75000815]
[1770571414861,1.69463448,2092.7,2092.0,0.96968313]
[1770571415268,1.69463448,2092.7,2091.9,4.78032502]
[1770571415760,0.92084686,2092.6,2091.5,1.19530902]
[1770571416156,0.92084686,2092.6,2091.4,0.96968313]
[1770571416356,0.92084686,2092.6,2091.5,1.19530788]
[1770571416560,0.92084686,2092.3,2091.3,1.19541992]
[1770571416888,0.92084686,2092.1,2091.3,1.19541992]
[1770571417750,1.19491444,2092.2,2091.4,0.96968313]
[1770571419069,0.92084686,2092.1,2091.4,1.19531528]
[1770571420675,0.92084686,2092.1,2091.4,1.19536884]
[1770571421202,2.11584083,2092.1,2091.3,5.75139721]
[1770571421390,1.19499397,2092.1,2091.6,0.001]
[1770571424687,4.77965802,2092.2,2091.6,0.001]
[1770571425773,5.68111845,2092.2,2091.6,0.001]
[1770571426202,1.19489986,2092.3,2091.6,0.90622706]
[1770571427203,1.19489986,2092.3,2091.6,0.001]
[1770571427405,0.90146043,2092.2,2091.6,0.001]
[1770571427980,0.90146043,2092.2,2091.6,1.19625472]
[1770571428191,0.90146043,2092.2,2091.6,0.001]
[1770571429006,0.90146043,2092.2,2091.6,1.19625421]
[1770571429710,0.90346043,2092.5,2091.7,0.90522706]
[1770571429887,0.90346043,2092.5,2091.6,0.001]
[1770571432212,1.19480022,2092.4,2091.6,0.001]
[1770571432383,2.09626065,2092.4,2091.6,0.001]
[1770571434018,2.09626065,2092.4,2091.8,0.001]
[1770571435719,1.19480022,2092.4,2091.8,0.001]
[1770571436019,0.90146043,2092.4,2091.8,0.001]
[1770571437216,2.09631776,2092.3,2091.8,0.001]
[1770571438151,0.90146043,2092.2,2091.8,0.001]
[1770571439891,1.19485733,2092.3,2091.8,0.001]
[1770571440246,0.90146043,2091.9,2091.4,0.001]
[1770571440522,0.90146043,2091.4,2090.5,1.19586082]
[1770571440727,5.35547658,2091.2,2090.5,1.19586082]
[1770571440891,0.90146043,2091.4,2090.3,1.19596715]
[1770571440892,5.35547658,2091.0,2090.3,1.19596715]
[1770571441211,5.35547658,2091.0,2090.3,1.19595824]
[1770571441608,6.25693701,2091.2,2090.4,1.19593909]
[1770571441965,1.19554301,2091.1,2090.3,1.19600057]
[1770571442228,7.45246575,2091.2,2090.3,2.10122763]
[1770571442913,2.09698917,2091.2,2090.3,2.10122763]
[1770571443929,2.09728937,2090.6,2089.6,0.90522706]
[1770571444226,5.43717498,2090.8,2089.6,0.90522706]
[1770571444528,0.90146043,2090.7,2089.6,0.90522706]
[1770571446334,2.09728937,2090.6,2089.6,2.1015916]
[1770571446637,0.90146043,2090.5,2089.6,2.1015916]
[1770571446939,0.90146043,2090.5,2090.3,0.001]
[1770571447148,0.90146043,2090.5,2089.6,1.19636454]
[1770571447503,0.90146043,2090.2,2089.4,0.001]
[1770571447825,3.341,2090.4,2089.7,0.90522706]
[1770571448799,1.19600057,2090.3,2089.5,0.90522706]
[1770571449336,0.90146043,2090.2,2089.4,0.001]
[1770571450240,0.94916922,2090.0,2088.8,0.1386152]
[1770571450531,1.00386043,2089.8,2088.8,1.33546438]
[1770571450732,3.342,2089.7,2088.8,1.33543064]
[1770571450956,0.90146043,2089.5,2088.8,0.1386152]
[1770571451102,0.90146043,2089.5,2088.2,5.69389327]
[1770571451408,0.94916922,2089.0,2087.7,1.19748843]
[1770571451607,0.90146043,2088.8,2087.8,1.19740056]
[1770571451801,0.90146043,2088.8,2087.7,1.19744767]
[1770571452004,0.94916922,2088.6,2087.6,1.19750457]
[1770571452309,3.38970879,2088.9,2087.7,0.90522706]
[1770571452310,3.342,2088.9,2087.7,0.90522706]
[1770571453030,0.90146043,2088.7,2087.6,1.1975141]
[1770571453235,0.90146043,2088.5,2087.2,1.19952845]
[1770571453534,0.1024,2088.6,2087.4,1.19762417]
[1770571453707,1.00386043,2088.6,2087.4,1.19762468]
[1770571454030,0.90146043,2088.1,2087.2,0.00178593]
[1770571454208,3.343,2088.0,2087.2,0.00178593]
[1770571454718,0.90146043,2087.6,2086.3,4.79295164]
[1770571454918,1.19760479,2087.5,2086.3,5.77341889]
[1770571455212,1.09973385,2087.4,2086.2,2.17880007]
[1770571455413,3.343,2087.3,2086.2,2.17880007]
[1770571456118,1.19760479,2087.5,2086.3,0.98046725]
[1770571456319,1.19758494,2087.6,2086.3,0.98046725]
[1770571456713,3.343,2087.7,2086.3,1.02817604]
[1770571456917,3.343,2087.7,2086.5,0.98046725]
[1770571457208,4.54049608,2087.7,2086.5,0.98046725]
[1770571457411,0.99733385,2087.4,2085.9,0.98046725]
[1770571457607,0.99733385,2087.2,2086.1,1.19835695]
[1770571457826,1.04504264,2087.2,2085.8,4.79428658]
[1770571458045,1.04504264,2087.2,2086.0,1.19845991]
[1770571458208,1.04504264,2087.2,2085.4,8.16059568]
[1770571458410,0.99733385,2087.2,2086.1,1.19837458]
[1770571458710,0.99733385,2087.2,2086.7,0.001]
[1770571458931,2.19516816,2087.1,2085.9,2.17895568]
[1770571459138,3.345,2087.0,2085.9,1.19848843]
[1770571459318,0.99733385,2086.9,2085.7,1.19860387]
[1770571459616,0.99733385,2086.9,2085.7,0.98046725]
[1770571459831,3.345,2087.0,2085.9,1.19852012]
[1770571460034,3.345,2087.0,2085.8,1.19854165]
[1770571460035,4.34233385,2087.0,2085.8,1.19854165]
[1770571460230,4.34233385,2087.0,2085.6,0.001]
[1770571460231,0.99733385,2086.8,2085.6,0.001]
[1770571460421,0.04770879,2086.6,2085.6,1.19968713]
[1770571460646,0.99733385,2086.8,2085.8,1.19857622]
[1770571461024,0.99733385,2086.7,2085.6,0.001]
[1770571461231,1.19803385,2086.8,2085.6,0.001]
[1770571461232,1.04504264,2086.5,2085.6,0.001]
[1770571461734,0.99733385,2086.4,2085.6,0.001]
[1770571461915,3.346,2086.3,2085.6,0.001]
[1770571462418,3.4484,2086.7,2085.6,1.19969224]
[1770571462730,3.4484,2086.7,2085.6,2.18015949]
[1770571463034,1.19812134,2086.6,2085.6,1.19969224]
[1770571463635,4.64650136,2086.7,2085.6,1.19969224]
[1770571464411,4.54407194,2086.7,2085.6,2.18015949]
[1770571464612,4.54407194,2086.7,2085.6,1.19969224]
[1770571464843,0.1024,2086.2,2085.1,1.19894312]
[1770571465042,0.04770879,2086.0,2084.8,1.19915579]
[1770571465342,2.24350883,2086.0,2084.8,1.19915579]
[1770571465660,2.24350883,2086.0,2084.6,4.93523837]
[1770571465661,1.14744264,2085.6,2084.6,1.33785229]
[1770571465820,1.04504264,2085.3,2084.6,0.1386152]
[1770571466026,3.347,2085.2,2084.6,0.1386152]
[1770571466933,1.04504264,2085.1,2083.9,1.19964594]
[1770571467137,1.04504264,2085.1,2083.8,4.79885661]
[1770571467138,1.19909827,2084.9,2083.8,1.19973126]
[1770571467317,0.04770879,2085.1,2083.8,0.98046725]
[1770571467518,0.1024,2084.9,2083.8,0.98046725]
[1770571468049,3.4504,2084.9,2083.8,0.98046725]
[1770571468246,3.4504,2084.9,2083.7,1.19974623]
[1770571468543,0.99733385,2084.8,2083.4,4.32746725]
[1770571468744,1.04504264,2084.7,2083.7,1.19978436]
[1770571468917,0.1024,2084.9,2083.8,0.98046725]
[1770571469115,3.348,2084.8,2083.8,2.18016864]
[1770571469744,0.15010879,2084.7,2083.5,1.19986376]
[1770571469950,1.14744264,2084.7,2083.6,4.79937197]
[1770571470148,0.1024,2084.7,2083.8,1.1997298]
[1770571470324,3.349,2084.8,2083.8,2.18019705]
[1770571470522,3.349,2084.8,2083.8,1.1997298]
[1770571470733,3.349,2084.8,2083.8,2.18019705]
[1770571470921,3.349,2084.8,2083.9,0.98046725]
[1770571471348,3.349,2084.8,2083.9,2.18013785]
[1770571471843,3.349,2084.8,2083.9,2.18113785]
[1770571472047,3.349,2084.8,2083.9,1.20065437]
[1770571472566,0.1024,2085.1,2084.0,0.98046725]
[1770571472850,0.1024,2085.1,2083.9,1.20065437]
[1770571473052,0.1024,2085.1,2083.9,2.18112162]
[1770571473430,3.35,2085.3,2084.0,0.98046725]
[1770571473820,4.79446571,2085.8,2084.0,0.98046725]
[1770571474142,0.1024,2085.6,2084.0,1.02817604]
[1770571474343,0.99733385,2085.9,2084.2,6.43343357]
[1770571474538,3.35,2086.1,2084.4,0.98046725]
[1770571475039,1.19835106,2086.2,2084.4,0.98046725]
[1770571475235,0.1024,2086.1,2084.4,0.98046725]
[1770571475444,3.59912306,2086.4,2084.6,6.48114236]
[1770571475619,4.59595802,2086.4,2084.8,0.98046725]
[1770571475829,3.35,2086.4,2084.8,0.98046725]
[1770571476245,1.19821589,2086.5,2084.8,0.98046725]
[1770571476551,0.002,2086.6,2085.0,0.98046725]
[1770571476867,0.002,2086.6,2085.6,0.98046725]
[1770571477077,1.2001348,2086.6,2085.3,0.98046725]
[1770571477351,0.002,2086.6,2085.5,0.98046725]
[1770571478649,0.002,2086.6,2085.7,0.98046725]
[1770571479552,0.002,2086.6,2085.9,0.98046725]
[1770571480127,0.002,2086.6,2086.0,0.98046725]
[1770571480662,1.44662863,2087.5,2086.1,0.98046725]
[1770571480821,2.44396248,2087.5,2086.1,0.98046725]
[1770571481530,0.24899046,2087.5,2086.3,0.98046725]
[1770571481736,2.589,2087.8,2086.3,0.98046725]
[1770571481737,3.78643562,2087.8,2086.3,0.98046725]
[1770571481924,0.99733385,2087.7,2086.3,0.98046725]
[1770571482455,3.78643562,2087.8,2086.3,0.98046725]
[1770571482638,4.78376947,2087.8,2086.3,0.98046725]
[1770571483031,0.04770879,2087.6,2086.3,0.98046725]
[1770571483359,1.04504264,2087.6,2086.3,0.98046725]
[1770571483659,0.99733385,2087.6,2086.3,0.98046725]
[1770571483826,2.19489113,2087.6,2086.4,1.19823619]
[1770571484030,0.99733385,2087.6,2086.4,1.19823619]
[1770571484224,2.19488866,2087.6,2086.4,1.19823619]
[1770571484646,0.99733385,2087.6,2086.4,1.19823619]
[1770571484850,2.19489121,2087.6,2086.4,1.19823619]
[1770571485153,2.19489092,2087.6,2086.4,1.19823619]
[1770571485454,0.002,2087.4,2086.4,1.19823619]
[1770571486253,0.002,2087.4,2086.4,2.15004589]
[1770571486650,0.002,2087.4,2086.4,1.19823619]
[1770571486853,0.99908079,2087.4,2086.4,1.19823619]
[1770571487350,1.04478958,2087.3,2086.3,1.19825092]
[1770571487752,0.002,2087.4,2086.3,1.19825092]
[1770571487753,0.002,2087.4,2086.4,0.9518097]
[1770571488128,3.7864458,2087.8,2086.5,2.14998846]
[1770571488346,4.78352659,2087.8,2086.5,2.14998846]
[1770571488650,0.99708079,2087.7,2086.5,2.14998846]
[1770571489036,0.99708079,2087.5,2086.4,1.19820621]
[1770571489246,0.99708079,2087.2,2086.2,1.19832532]
[1770571489935,0.99708079,2087.2,2086.3,1.19829268]
[1770571490133,2.19490107,2087.2,2086.0,1.19846596]
[1770571490336,2.19490107,2087.2,2086.0,2.15027566]
[1770571492262,0.1024,2087.0,2085.7,0.9518097]
[1770571493446,1.3,2086.8,2085.7,0.9518097]
[1770571494366,1.3,2086.8,2085.9,0.9518097]
[1770571494562,1.3,2086.8,2086.1,0.9518097]
[1770571495060,1.3,2086.8,2085.9,0.9518097]
[1770571496334,1.3,2086.8,2086.1,0.9518097]
[1770571496540,1.3,2086.8,2086.0,1.19846596]
[1770571497044,1.3,2086.8,2086.0,2.15027566]
[1770571498861,1.3,2086.8,2086.1,0.001]
[1770571500264,2.29708079,2086.8,2086.1,0.001]
[1770571500467,3.49513315,2086.8,2086.1,0.001]
[1770571500768,0.99708079,2086.6,2085.9,0.001]
[1770571501061,0.1024,2086.7,2085.9,0.001]
[1770571501466,0.1024,2087.0,2085.9,0.9528097]
[1770571502165,0.15010879,2087.0,2085.9,0.9528097]
[1770571502465,1.14718958,2087.0,2085.9,0.001]
[1770571502666,2.29738289,2087.0,2085.9,0.001]
[1770571502834,1.19789735,2087.0,2085.9,0.9528097]
[1770571503239,1.30027723,2087.1,2085.9,0.9528097]
[1770571504871,0.1024,2087.1,2086.0,1.19846596]
[1770571505370,0.1024,2087.1,2086.0,2.15027566]
[1770571505568,0.1044,2087.2,2086.1,0.9518097]
[1770571507767,0.1044,2087.2,2086.2,1.19835106]
[1770571508275,0.002,2087.2,2086.2,1.19835106]
[1770571509553,0.002,2087.2,2086.2,2.15016076]
[1770571511061,0.99708079,2087.1,2086.2,1.19835106]
[1770571511667,0.99708079,2087.1,2085.9,4.3018097]
[1770571511870,0.99708079,2087.1,2086.2,1.19833806]
[1770571512249,0.99708079,2087.1,2086.3,0.001]
[1770571512446,0.002,2087.0,2086.3,0.001]
[1770571513222,0.002,2087.0,2086.3,0.9528097]
[1770571513683,0.002,2087.0,2086.3,0.001]
[1770571514053,0.002,2087.0,2086.3,0.9528097]
[1770571514875,0.002,2087.0,2086.4,2.15004589]
[1770571515677,0.002,2087.0,2086.3,1.19924895]
[1770571516777,0.002,2087.0,2086.3,0.001]
[1770571516985,0.002,2087.0,2086.3,0.99493529]
[1770571518563,0.002,2087.0,2086.3,0.001]
[1770571522898,0.002,2087.0,2086.3,0.99493529]
[1770571523195,0.002,2087.0,2086.4,0.99393529]
[1770571525381,0.002,2086.8,2086.5,1.19817876]
[1770571525987,0.002,2086.8,2086.4,1.19819191]
[1770571527678,0.002,2086.8,2086.3,0.001]
[1770571527993,0.002,2086.8,2086.3,0.99493529]
[1770571530295,0.002,2086.8,2086.4,1.19823619]
[1770571531410,0.002,2086.8,2086.4,2.19217148]
[1770571531578,0.002,2086.8,2086.3,0.001]
[1770571531777,0.002,2086.8,2086.3,1.19928878]
[1770571531977,0.002,2086.8,2086.3,0.001]
[1770571532182,0.98533642,2086.8,2086.3,0.001]
[1770571532578,0.98533642,2086.8,2086.0,1.19946596]
[1770571532785,0.98333642,2086.7,2086.0,0.001]
[1770571533207,0.002,2086.8,2086.0,0.001]
[1770571533709,0.002,2086.8,2086.0,0.99493529]
[1770571534487,0.002,2086.8,2086.2,0.99393529]
[1770571536006,0.002,2086.8,2086.0,4.79463405]
[1770571536007,0.98533642,2086.8,2086.0,0.001]
[1770571536392,0.98333642,2086.6,2086.0,0.001]
[1770571536689,0.98333642,2086.6,2085.2,4.79557567]
[1770571536690,0.98333642,2086.2,2085.4,1.19880365]
[1770571537012,0.98333642,2086.2,2084.9,0.99393529]
[1770571537191,0.98333642,2086.0,2085.1,1.19895098]
[1770571537699,0.98333642,2086.0,2085.2,1.19891918]
[1770571537900,0.98333642,2086.0,2085.1,1.19894075]
[1770571538098,1.03104521,2086.0,2085.1,1.19894075]
[1770571538399,1.03104521,2086.0,2085.2,0.001]
[1770571539095,1.19852341,2085.9,2085.2,0.001]
[1770571539917,0.98333642,2085.8,2085.2,0.001]
[1770571541514,2.18196103,2085.8,2085.2,0.001]
[1770571541720,3.349,2085.8,2085.2,0.001]
[1770571542103,4.33233642,2085.8,2085.2,0.001]
[1770571542492,0.1024,2086.0,2085.2,0.001]
[1770571542692,3.35,2085.9,2085.2,0.001]
[1770571542899,4.33333642,2085.9,2085.2,0.001]
[1770571543418,0.98333642,2085.8,2085.2,0.001]
[1770571543717,2.18193307,2085.8,2085.2,0.001]
[1770571544603,3.35,2085.7,2085.2,0.001]
[1770571546015,3.35,2085.8,2085.2,0.001]
[1770571549851,1.19806392,2086.7,2085.5,0.96925915]
[1770571550144,0.002,2086.6,2085.7,0.96925915]
[1770571551423,0.002,2086.6,2085.8,1.19858088]
[1770571551622,0.002,2086.6,2085.8,2.16784003]
[1770571552511,0.002,2086.6,2085.9,0.96925915]
[1770571553437,0.002,2086.6,2086.0,2.16772511]
[1770571553604,0.002,2086.6,2086.0,1.19846596]
[1770571553806,0.002,2086.6,2086.1,0.96925915]
[1770571555336,0.002,2086.6,2086.1,0.95409677]
[1770571557334,0.002,2086.6,2086.3,0.96925915]
[1770571559353,0.002,2086.6,2086.3,1.19825824]
[1770571560511,0.002,2086.6,2086.1,1.19837177]
[1770571561110,0.002,2086.6,2086.2,1.19830585]
[1770571561542,0.002,2086.6,2086.1,5.7628744]
[1770571561543,0.002,2086.6,2086.1,1.1983652]
[1770571562351,0.002,2086.6,2086.2,0.96925915]
[1770571563263,0.002,2086.4,2086.2,0.96925915]
[1770571563447,0.002,2086.4,2086.3,1.19829362]
[1770571565259,0.002,2086.4,2085.9,0.97025915]
[1770571566045,0.002,2087.0,2085.9,0.97025915]
[1770571567448,0.002,2087.0,2086.1,0.96925915]
[1770571570154,0.002,2087.0,2086.3,0.96925915]
[1770571573465,0.002,2087.0,2086.4,2.16749534]
[1770571573648,0.002,2087.0,2086.5,0.96925915]
[1770571575565,0.002,2087.0,2086.6,1.19812134]
[1770571575739,0.002,2087.0,2086.6,2.11016907]
[1770571575940,0.002,2087.0,2086.7,0.91204773]
[1770571577372,0.002,2086.8,2086.7,0.91204773]
[1770571577574,0.002,2087.0,2086.8,2.11005424]
[1770571577766,0.002,2087.2,2086.8,2.11005424]
[1770571578636,0.002,2087.2,2086.9,0.91204773]
[1770571579340,0.002,2087.2,2086.1,0.001]
[1770571579670,0.002,2087.2,2086.2,5.70543054]
[1770571579845,0.002,2087.2,2086.3,0.91204773]
[1770571580795,0.002,2087.2,2086.4,0.91204773]
[1770571581569,0.002,2087.2,2086.5,1.19817876]
[1770571583250,0.002,2087.2,2086.6,0.91204773]
[1770571583758,0.002,2087.2,2086.7,1.19806392]
[1770571583958,0.002,2087.2,2086.6,1.1980959]
[1770571585243,0.92474762,2087.2,2086.6,1.1980959]
[1770571585795,0.92474762,2087.2,2086.4,1.19823619]
[1770571587072,0.92474762,2087.2,2086.3,1.19827193]
[1770571587073,2.12058193,2087.1,2086.3,1.19827193]
[1770571587273,0.92274762,2086.6,2085.9,0.001]
[1770571587568,0.92274762,2086.4,2085.4,1.19980545]
[1770571587766,2.12121358,2086.0,2085.4,0.001]
[1770571588763,0.92274762,2086.7,2085.6,0.002]
[1770571588955,2.12085501,2086.7,2085.6,0.002]
[1770571589159,2.22325501,2086.7,2086.6,0.001]
[1770571589347,2.12085501,2086.7,2085.6,0.002]
[1770571589657,2.12085501,2086.7,2086.4,0.001]
[1770571589851,2.12085501,2086.7,2085.6,0.002]
[1770571590053,1.19802839,2086.8,2085.6,0.91404773]
[1770571590244,1.19990052,2087.0,2085.8,0.91204773]
[1770571590464,1.19990052,2087.0,2085.8,0.90758841]
[1770571590667,0.002,2087.0,2085.8,0.90758841]
[1770571591858,0.002,2087.0,2085.9,1.19852341]
[1770571593355,0.002,2087.0,2086.0,0.91304773]